[Event "Kupreichik Memorial Rapid 2019"]
[Site "Minsk"]
[Date "2019.08.16"]
[Round "7.22"]
[White "Kalinin, Dmitry"]
[Black "Sadovnikov, Konstantin"]
[Result "1-0"]
[ECO "A56"]
[WhiteElo "2119"]
[BlackElo "1798"]
[Annotator "NA"]
[PlyCount "127"]
[EventDate "2019.08.15"]
[EventType "swiss"]
[EventCountry "BLR"]
[SourceTitle "playchess.com"]
[Source "ChessBase"]
[SourceQuality "1"]
[TimeControl "900+10"]

1. d4 {[%emt 0:00:00]} Nf6 {[%emt 0:00:00]} 2. c4 {[%emt 0:00:00]} c5 {[%emt 0:00:00]} 3. dxc5 {[%emt 0:00:41]} e6 {[%emt 0:00:00]} 4. Nf3 {[%emt 0:00:03]} Bxc5 {[%emt 0:00:00]} 5. e3 {[%emt 0:00:01]} Nc6 {[%emt 0:00:01]} 6. Be2 {[%emt 0:00:04]} O-O {[%emt 0:00:02]} 7. O-O {[%emt 0:00:07]} d5 {[%emt 0:00:08]} 8. cxd5 {[%emt 0:00:19]} Qxd5 {[%emt 0:00:33]} 9. Qa4 {[%emt 0:00:53]} Qe4 {[%emt 0:01:26]} 10. Qb5 {[%emt 0:00:40]} Qb4 {[%emt 0:00:25]} 11. Nc3 {[%emt 0:00:01]} a6 {[%emt 0:00:31]} 12. Qd3 {[%emt 0:00:11]} Rd8 {[%emt 0:00:29]} 13. Qc2 {[%emt 0:00:01]} Bd6 {[%emt 0:00:27]} 14. Rd1 {[%emt 0:00:32]} Qb6 {[%emt 0:00:48]} 15. a3 {[%emt 0:00:16]} Qc7 {[%emt 0:00:06]} 16. e4 {[%emt 0:00:57]} Bd7 {[%emt 0:02:13]} 17. Bg5 {[%emt 0:01:52]} Ne5 {[%emt 0:00:58]} 18. g3 {[%emt 0:01:25]} Nxf3+ {[%emt 0:00:54]} 19. Bxf3 {[%emt 0:00:02]} Be7 {[%emt 0:00:15]} 20. Rac1 {[%emt 0:00:37]} Rac8 {[%emt 0:00:07]} 21. Qe2 {[%emt 0:01:01]} Bc6 {[%emt 0:01:16]} 22. Bg2 {[%emt 0:02:44]} h6 {[%emt 0:00:40]} 23. Be3 {[%emt 0:00:31]} Rxd1+ {[%emt 0:00:07]} 24. Qxd1 {[%emt 0:00:34]} Rd8 {[%emt 0:00:42]} 25. Qb3 {[%emt 0:00:20]} Nd7 {[%emt 0:01:23]} 26. Nd5 {[%emt 0:00:12]} Qd6 {[%emt 0:01:34]} 27. Nxe7+ {[%emt 0:02:56]} Qxe7 {[%emt 0:00:05]} 28. h3 {[%emt 0:00:03]} Nf6 {[%emt 0:00:25]} 29. Qc4 {[%emt 0:00:45]} Bb5 {[%emt 0:00:28]} 30. Qc3 {[%emt 0:00:30]} Bc6 {[%emt 0:01:05]} 31. Qe5 {[%emt 0:00:19]} Qd7 {[%emt 0:01:23]} 32. Bxh6 {[%emt 0:00:02]} gxh6 {[%emt 0:01:05]} 33. Qxf6 {[%emt 0:00:01]} Qd2 {[%emt 0:00:05]} 34. Rc2 {[%emt 0:00:02]} Qd1+ {[%emt 0:00:30]} 35. Kh2 {[%emt 0:00:01]} Qxc2 {[%emt 0:00:00]} 36. Qxd8+ {[%emt 0:00:00]} Kg7 {[%emt 0:00:00]} 37. Qd4+ {[%emt 0:00:00]} Kg8 {[%emt 0:00:00]} 38. h4 {[%emt 0:00:00]} Qe2 {[%emt 0:00:00]} 39. b3 {[%emt 0:00:21]} Qc2 {[%emt 0:00:00]} 40. Qe3 {[%emt 0:00:32]} Kg7 {[%emt 0:00:00]} 41. b4 {[%emt 0:00:05]} Qb2 {[%emt 0:00:14]} 42. Bf3 {[%emt 0:00:12]} Qe5 {[%emt 0:00:09]} 43. Kg2 {[%emt 0:00:25]} Bb5 {[%emt 0:00:29]} 44. Qc5 {[%emt 0:00:36]} Qa1 {[%emt 0:00:33]} 45. e5 {[%emt 0:00:25]} Qxa3 {[%emt 0:00:30]} 46. Bxb7 {[%emt 0:00:02]} Qa1 {[%emt 0:00:06]} 47. Qe3 {[%emt 0:00:23]} Qb1 {[%emt 0:00:15]} 48. Qf4 {[%emt 0:00:04]} Qe1 {[%emt 0:00:13]} 49. g4 {[%emt 0:00:30]} Bf1+ {[%emt 0:00:11]} 50. Kh2 {[%emt 0:00:05]} Bd3 {[%emt 0:00:06]} 51. g5 {[%emt 0:00:26]} hxg5 {[%emt 0:00:11]} 52. Qxg5+ {[%emt 0:00:02]} Kf8 {[%emt 0:00:02]} 53. Qf4 {[%emt 0:00:15]} Qf1 {[%emt 0:00:19]} 54. h5 {[%emt 0:00:10]} Bf5 {[%emt 0:00:15]} 55. Bg2 {[%emt 0:00:09]} Qe2 {[%emt 0:00:02]} 56. h6 {[%emt 0:00:14]} Qh5+ {[%emt 0:00:06]} 57. Kg3 {[%emt 0:00:18]} Qg6+ {[%emt 0:00:15]} 58. Kf3 {[%emt 0:00:14]} Qh5+ {[%emt 0:00:12]} 59. Ke3 {[%emt 0:00:19]} Qd1 {[%emt 0:00:01]} 60. Qd4 {[%emt 0:00:10]} Qc1+ {[%emt 0:00:24]} 61. Qd2 {[%emt 0:00:01]} Qc7 {[%emt 0:00:12]} 62. Qd6+ {[%emt 0:00:05]} Qxd6 {[%emt 0:00:00]} 63. exd6 {[%emt 0:00:02]} Ke8 {[%emt 0:00:03]} 64. Be4 1-0

[Event "Kupreichik Memorial Rapid 2019"]
[Site "Minsk"]
[Date "2019.08.16"]
[Round "7.23"]
[White "Talma, Sergei"]
[Black "Zhukovskij, Viktor"]
[Result "1-0"]
[ECO "C12"]
[WhiteElo "1882"]
[BlackElo "2028"]
[Annotator "NA"]
[PlyCount "131"]
[EventDate "2019.08.15"]
[EventType "swiss"]
[EventCountry "BLR"]
[SourceTitle "playchess.com"]
[Source "ChessBase"]
[SourceQuality "1"]
[TimeControl "900+10"]

1. d4 {[%emt 0:00:00]} Nf6 {[%emt 0:00:00]} 2. Nc3 {[%emt 0:00:00]} d5 {[%emt 0:00:00]} 3. Bg5 {[%emt 0:00:01]} e6 {[%emt 0:00:44]} 4. e4 {[%emt 0:00:07]} Bb4 {[%emt 0:00:04]} 5. Nge2 {[%emt 0:00:14]} h6 {[%emt 0:01:54]} 6. Bxf6 {[%emt 0:00:19]} Qxf6 {[%emt 0:00:02]} 7. a3 {[%emt 0:01:02]} Bxc3+ {[%emt 0:01:19]} 8. Nxc3 {[%emt 0:00:03]} c6 {[%emt 0:00:46]} 9. e5 {[%emt 0:01:37]} Qe7 {[%emt 0:00:01]} 10. Bd3 {[%emt 0:00:32]} a6 {[%emt 0:00:02]} 11. Ne2 {[%emt 0:00:37]} b6 {[%emt 0:00:41]} 12. O-O {[%emt 0:02:05]} c5 {[%emt 0:00:01]} 13. c3 {[%emt 0:00:16]} Nc6 {[%emt 0:00:01]} 14. Bc2 {[%emt 0:00:42]} Bb7 {[%emt 0:00:19]} 15. f4 {[%emt 0:00:33]} g6 {[%emt 0:00:02]} 16. Qd2 {[%emt 0:01:49]} h5 {[%emt 0:00:08]} 17. b4 {[%emt 0:00:58]} c4 {[%emt 0:04:09]} 18. Kh1 {[%emt 0:00:14]} Qc7 {[%emt 0:00:04]} 19. Ng1 {[%emt 0:00:12]} h4 {[%emt 0:00:10]} 20. Nh3 {[%emt 0:00:32]} Ne7 {[%emt 0:00:04]} 21. a4 {[%emt 0:00:45]} Nf5 {[%emt 0:00:15]} 22. Bxf5 {[%emt 0:02:14]} gxf5 {[%emt 0:00:01]} 23. Ng5 {[%emt 0:00:02]} Qe7 {[%emt 0:00:07]} 24. a5 {[%emt 0:00:33]} b5 {[%emt 0:00:06]} 25. Rf3 {[%emt 0:00:19]} O-O-O {[%emt 0:00:10]} 26. Rh3 {[%emt 0:00:16]} Rh5 {[%emt 0:01:18]} 27. g3 {[%emt 0:01:49]} Rdh8 {[%emt 0:00:11]} 28. Rxh4 {[%emt 0:00:08]} Rxh4 {[%emt 0:00:02]} 29. gxh4 Rxh4 {[%emt 0:00:02]} 30. Qf2 {[%emt 0:00:12]} Rh6 {[%emt 0:01:05]} 31. Rg1 {[%emt 0:00:14]} Bc6 {[%emt 0:00:02]} 32. Rg3 {[%emt 0:00:15]} f6 {[%emt 0:01:16]} 33. exf6 {[%emt 0:00:05]} Qxf6 {[%emt 0:00:14]} 34. Nf3 {[%emt 0:00:30]} Be8 {[%emt 0:00:21]} 35. Qg2 {[%emt 0:00:21]} Bg6 {[%emt 0:02:25]} 36. Ne5 {[%emt 0:00:01]} Bh7 {[%emt 0:00:14]} 37. Rg7 {[%emt 0:00:44]} Kd8 {[%emt 0:01:39]} 38. Nf7+ {[%emt 0:00:40]} Ke8 {[%emt 0:00:07]} 39. Nxh6 {[%emt 0:00:01]} Qxh6 {[%emt 0:00:01]} 40. Qg5 {[%emt 0:00:06]} Qxg5 41. fxg5 {[%emt 0:00:01]} Bg8 {[%emt 0:00:15]} 42. Ra7 {[%emt 0:00:05]} Kf8 {[%emt 0:00:01]} 43. Rxa6 {[%emt 0:00:08]} Kg7 {[%emt 0:00:01]} 44. Rb6 {[%emt 0:00:10]} Kg6 {[%emt 0:00:01]} 45. a6 {[%emt 0:00:01]} Kxg5 {[%emt 0:00:01]} 46. a7 {[%emt 0:00:02]} Bh7 {[%emt 0:00:02]} 47. a8=Q {[%emt 0:00:05]} f4 {[%emt 0:00:01]} 48. Rxe6 {[%emt 0:00:16]} Kg4 {[%emt 0:00:00]} 49. Qxd5 {[%emt 0:00:19]} Bd3 {[%emt 0:00:09]} 50. Re1 {[%emt 0:00:14]} f3 {[%emt 0:00:11]} 51. Kg1 {[%emt 0:00:15]} Kf4 {[%emt 0:00:20]} 52. Kf2 {[%emt 0:00:22]} Be2 {[%emt 0:00:03]} 53. Qe5+ {[%emt 0:00:08]} Kg4 {[%emt 0:00:02]} 54. Rxe2 {[%emt 0:00:05]} fxe2 {[%emt 0:00:03]} 55. Qxe2+ {[%emt 0:00:03]} Kf4 {[%emt 0:00:00]} 56. Qe5+ {[%emt 0:00:04]} Kg4 {[%emt 0:00:02]} 57. Qg3+ {[%emt 0:00:02]} Kf5 {[%emt 0:00:02]} 58. h4 {[%emt 0:00:03]} Ke4 {[%emt 0:00:02]} 59. h5 {[%emt 0:00:07]} Kf5 {[%emt 0:00:01]} 60. h6 {[%emt 0:00:07]} Ke4 {[%emt 0:00:02]} 61. h7 {[%emt 0:00:14]} Kf5 {[%emt 0:00:07]} 62. h8=Q {[%emt 0:00:18]} Ke6 {[%emt 0:00:03]} 63. Qhe5+ {[%emt 0:00:02]} Kd7 {[%emt 0:00:01]} 64. Qgg7+ {[%emt 0:00:02]} Kd8 {[%emt 0:00:03]} 65. Qee7+ {[%emt 0:00:02]} Kc8 {[%emt 0:00:01]} 66. Qc7# 1-0

[Event "Kupreichik Memorial Rapid 2019"]
[Site "Minsk"]
[Date "2019.08.16"]
[Round "7.24"]
[White "Masjuk, Vladimir"]
[Black "Sarbay, Aleksandr"]
[Result "0-1"]
[ECO "C02"]
[WhiteElo "1900"]
[BlackElo "2115"]
[Annotator "NA"]
[PlyCount "62"]
[EventDate "2019.08.15"]
[EventType "swiss"]
[EventCountry "BLR"]
[SourceTitle "playchess.com"]
[Source "ChessBase"]
[SourceQuality "1"]
[TimeControl "900+10"]

1. e4 {[%emt 0:00:00]} c5 {[%emt 0:00:00]} 2. c3 {[%emt 0:00:00]} e6 {[%emt 0:00:00]} 3. d4 {[%emt 0:00:00]} d5 {[%emt 0:00:14]} 4. e5 {[%emt 0:00:01]} Nc6 {[%emt 0:00:07]} 5. Nf3 {[%emt 0:00:04]} Qb6 {[%emt 0:00:05]} 6. Be2 {[%emt 0:00:07]} cxd4 {[%emt 0:01:01]} 7. cxd4 {[%emt 0:00:02]} Nge7 {[%emt 0:01:07]} 8. g4 {[%emt 0:01:22]} h5 {[%emt 0:00:43]} 9. gxh5 {[%emt 0:01:19]} Nf5 {[%emt 0:00:13]} 10. Be3 {[%emt 0:01:03]} Qxb2 {[%emt 0:01:24]} 11. Nbd2 {[%emt 0:00:03]} Ncxd4 {[%emt 0:03:16]} 12. Nxd4 {[%emt 0:00:10]} Nxd4 {[%emt 0:00:16]} 13. Qa4+ {[%emt 0:00:45]} Nc6 {[%emt 0:00:12]} 14. O-O {[%emt 0:00:08]} Qxe5 {[%emt 0:00:47]} 15. Rac1 {[%emt 0:00:28]} Bd6 {[%emt 0:02:12]} 16. Nf3 {[%emt 0:00:28]} Qxh5 {[%emt 0:00:03]} 17. Bf4 {[%emt 0:02:23]} Qg4+ {[%emt 0:00:22]} 18. Kh1 {[%emt 0:00:34]} Qxf4 {[%emt 0:00:18]} 19. Qxf4 Bxf4 {[%emt 0:00:01]} 20. Rc2 {[%emt 0:00:51]} e5 {[%emt 0:01:18]} 21. Bb5 {[%emt 0:00:00]} Bd7 {[%emt 0:01:11]} 22. Rd1 {[%emt 0:00:27]} e4 {[%emt 0:00:45]} 23. Bxc6 {[%emt 0:01:16]} bxc6 {[%emt 0:00:24]} 24. Nd4 {[%emt 0:00:05]} Rc8 {[%emt 0:00:28]} 25. f3 {[%emt 0:00:03]} exf3 {[%emt 0:00:27]} 26. Nxf3 {[%emt 0:00:13]} Bf5 {[%emt 0:00:27]} 27. Re2+ {[%emt 0:01:50]} Be4 {[%emt 0:00:06]} 28. Kg1 {[%emt 0:00:04]} Kf8 {[%emt 0:00:21]} 29. Nd4 {[%emt 0:00:04]} c5 {[%emt 0:00:18]} 30. Rf1 {[%emt 0:00:40]} Bxh2+ {[%emt 0:00:40]} 31. Rxh2 {[%emt 0:00:08]} Rxh2 {[%emt 0:00:01]} 0-1

[Event "Kupreichik Memorial Rapid 2019"]
[Site "Minsk"]
[Date "2019.08.16"]
[Round "7.25"]
[White "Kharin, Mikhail"]
[Black "Tkachou, Viktar"]
[Result "1-0"]
[ECO "A45"]
[WhiteElo "2156"]
[BlackElo "1791"]
[Annotator "NA"]
[PlyCount "85"]
[EventDate "2019.08.15"]
[EventType "swiss"]
[EventCountry "BLR"]
[SourceTitle "playchess.com"]
[Source "ChessBase"]
[SourceQuality "1"]
[TimeControl "900+10"]

1. d4 {[%emt 0:00:00]} Nf6 {[%emt 0:00:00]} 2. Nc3 {[%emt 0:00:00]} e6 {[%emt 0:00:00]} 3. Bf4 {[%emt 0:00:00]} d5 {[%emt 0:00:05]} 4. Nb5 {[%emt 0:00:11]} Bd6 {[%emt 0:00:32]} 5. Nxd6+ {[%emt 0:00:05]} cxd6 {[%emt 0:00:01]} 6. Nf3 {[%emt 0:00:05]} Nc6 {[%emt 0:00:09]} 7. e3 {[%emt 0:00:06]} h6 {[%emt 0:00:06]} 8. c4 {[%emt 0:00:06]} dxc4 {[%emt 0:00:06]} 9. Bxc4 {[%emt 0:00:02]} O-O {[%emt 0:00:13]} 10. O-O {[%emt 0:00:03]} b6 {[%emt 0:00:51]} 11. Rc1 {[%emt 0:00:24]} Na5 {[%emt 0:00:44]} 12. Bb5 {[%emt 0:01:32]} Nh5 {[%emt 0:00:51]} 13. b4 {[%emt 0:01:36]} Nxf4 {[%emt 0:02:08]} 14. exf4 {[%emt 0:00:33]} a6 {[%emt 0:00:50]} 15. Ba4 {[%emt 0:00:53]} Nb7 {[%emt 0:00:18]} 16. Bc6 {[%emt 0:00:33]} Rb8 {[%emt 0:00:07]} 17. Qd3 {[%emt 0:00:30]} a5 {[%emt 0:00:52]} 18. b5 {[%emt 0:00:13]} Bd7 {[%emt 0:00:29]} 19. a4 {[%emt 0:00:08]} f6 {[%emt 0:00:55]} 20. Rc3 {[%emt 0:00:31]} d5 {[%emt 0:00:16]} 21. f5 {[%emt 0:01:29]} Nd6 {[%emt 0:00:52]} 22. fxe6 {[%emt 0:00:11]} Bxe6 {[%emt 0:00:02]} 23. Re1 {[%emt 0:00:34]} Bf7 {[%emt 0:02:02]} 24. Nd2 {[%emt 0:00:24]} Nc4 {[%emt 0:00:31]} 25. Nxc4 {[%emt 0:00:28]} dxc4 {[%emt 0:00:01]} 26. Qe4 {[%emt 0:00:20]} Rc8 {[%emt 0:00:40]} 27. d5 {[%emt 0:00:16]} Rxc6 {[%emt 0:01:56]} 28. dxc6 {[%emt 0:00:21]} Re8 {[%emt 0:00:04]} 29. Qb1 {[%emt 0:00:13]} Bg6 {[%emt 0:00:56]} 30. Rxe8+ {[%emt 0:01:42]} Qxe8 {[%emt 0:00:02]} 31. Qc1 {[%emt 0:00:05]} Bd3 {[%emt 0:00:03]} 32. Qe3 {[%emt 0:00:14]} Qd8 {[%emt 0:00:17]} 33. h3 {[%emt 0:00:33]} Kf7 {[%emt 0:00:30]} 34. Rc1 {[%emt 0:00:19]} Kf8 {[%emt 0:01:21]} 35. Qf4 {[%emt 0:00:54]} Qc8 {[%emt 0:00:34]} 36. Qd6+ {[%emt 0:00:16]} Kf7 {[%emt 0:00:14]} 37. Re1 {[%emt 0:00:04]} Bf5 {[%emt 0:00:28]} 38. Re7+ {[%emt 0:00:33]} Kg8 {[%emt 0:00:12]} 39. c7 {[%emt 0:00:06]} c3 {[%emt 0:00:26]} 40. Qc6 {[%emt 0:00:34]} Kf8 {[%emt 0:00:21]} 41. Qd6 {[%emt 0:01:23]} Kg8 {[%emt 0:00:12]} 42. Qg3 {[%emt 0:00:10]} g6 {[%emt 0:00:26]} 43. Qxc3 {[%emt 0:00:05]} 1-0

[Event "Kupreichik Memorial Rapid 2019"]
[Site "Minsk"]
[Date "2019.08.16"]
[Round "7.27"]
[White "Strizhnev, Ivan"]
[Black "Svjatocho, Andrej"]
[Result "1-0"]
[ECO "B03"]
[WhiteElo "1394"]
[BlackElo "1995"]
[Annotator "NA"]
[PlyCount "87"]
[EventDate "2019.08.15"]
[EventType "swiss"]
[EventCountry "BLR"]
[SourceTitle "playchess.com"]
[Source "ChessBase"]
[SourceQuality "1"]
[TimeControl "900+10"]

1. e4 {[%emt 0:00:00]} Nf6 {[%emt 0:00:00]} 2. e5 {[%emt 0:00:00]} Nd5 {[%emt 0:00:00]} 3. c4 {[%emt 0:00:00]} Nb6 {[%emt 0:00:00]} 4. d4 {[%emt 0:00:00]} d6 {[%emt 0:00:00]} 5. f4 {[%emt 0:00:01]} dxe5 {[%emt 0:00:03]} 6. fxe5 {[%emt 0:00:03]} Nc6 {[%emt 0:00:03]} 7. Nf3 {[%emt 0:00:04]} Bf5 {[%emt 0:00:31]} 8. b3 {[%emt 0:00:42]} e6 {[%emt 0:00:17]} 9. Bb2 {[%emt 0:00:13]} Nb4 {[%emt 0:01:36]} 10. Na3 {[%emt 0:00:35]} c5 {[%emt 0:00:22]} 11. dxc5 {[%emt 0:00:27]} Bxc5 {[%emt 0:00:10]} 12. Bd4 {[%emt 0:00:32]} Nd3+ {[%emt 0:03:05]} 13. Bxd3 {[%emt 0:00:34]} Bxd4 {[%emt 0:00:03]} 14. Bxf5 {[%emt 0:00:35]} Bxa1 {[%emt 0:00:26]} 15. Be4 {[%emt 0:00:47]} Qxd1+ {[%emt 0:02:20]} 16. Kxd1 {[%emt 0:00:02]} O-O-O+ {[%emt 0:00:04]} 17. Kc2 {[%emt 0:00:11]} Bd4 {[%emt 0:00:04]} 18. Nb5 {[%emt 0:00:03]} Bc5 {[%emt 0:00:38]} 19. Nxa7+ {[%emt 0:00:04]} Kb8 {[%emt 0:00:04]} 20. Nb5 {[%emt 0:00:03]} f5 {[%emt 0:01:04]} 21. Bd3 {[%emt 0:00:35]} h6 {[%emt 0:00:14]} 22. h4 {[%emt 0:00:17]} Nc8 {[%emt 0:00:26]} 23. a3 {[%emt 0:01:37]} b6 {[%emt 0:01:26]} 24. b4 {[%emt 0:00:12]} Be7 {[%emt 0:00:03]} 25. Nbd4 {[%emt 0:00:49]} g5 {[%emt 0:01:21]} 26. Nc6+ {[%emt 0:00:30]} Kc7 {[%emt 0:00:15]} 27. Nxd8 {[%emt 0:00:03]} Rxd8 {[%emt 0:00:07]} 28. hxg5 {[%emt 0:00:27]} hxg5 {[%emt 0:00:12]} 29. Rh6 {[%emt 0:00:28]} g4 {[%emt 0:00:17]} 30. Nd2 {[%emt 0:00:27]} Kd7 {[%emt 0:00:22]} 31. Nb3 {[%emt 0:00:54]} Bg5 {[%emt 0:00:34]} 32. Rg6 {[%emt 0:00:16]} Be3 {[%emt 0:00:39]} 33. c5 {[%emt 0:01:43]} Ne7 {[%emt 0:01:02]} 34. Bb5+ {[%emt 0:00:19]} Kc8 {[%emt 0:00:19]} 35. Rxe6 {[%emt 0:00:30]} Nd5 {[%emt 0:00:20]} 36. Rd6 {[%emt 0:01:08]} f4 {[%emt 0:00:22]} 37. e6 {[%emt 0:02:26]} Nc7 {[%emt 0:00:45]} 38. Bd7+ {[%emt 0:01:00]} Kb8 {[%emt 0:00:13]} 39. e7 {[%emt 0:00:19]} Rh8 {[%emt 0:00:11]} 40. cxb6 {[%emt 0:00:53]} Ne8 {[%emt 0:00:40]} 41. Bxe8 {[%emt 0:00:11]} f3 {[%emt 0:00:36]} 42. Rd8+ {[%emt 0:01:03]} Kb7 {[%emt 0:00:01]} 43. Bc6+ {[%emt 0:00:17]} Kxc6 {[%emt 0:00:03]} 44. Rxh8 {[%emt 0:00:05]} 1-0

[Event "Kupreichik Memorial Rapid 2019"]
[Site "Minsk"]
[Date "2019.08.16"]
[Round "7.28"]
[White "Dvurechensky, Viacheslav"]
[Black "Arlou, Valery"]
[Result "1-0"]
[ECO "B06"]
[WhiteElo "1840"]
[BlackElo "1759"]
[Annotator "NA"]
[PlyCount "151"]
[EventDate "2019.08.15"]
[EventType "swiss"]
[EventCountry "BLR"]
[SourceTitle "playchess.com"]
[Source "ChessBase"]
[SourceQuality "1"]
[TimeControl "900+10"]

1. e4 {[%emt 0:00:00]} g6 {[%emt 0:00:00]} 2. d4 {[%emt 0:00:00]} Bg7 {[%emt 0:00:00]} 3. Nc3 {[%emt 0:00:11]} d6 {[%emt 0:00:00]} 4. Nf3 {[%emt 0:00:42]} Bg4 {[%emt 0:00:03]} 5. Be2 {[%emt 0:00:09]} Nc6 {[%emt 0:01:16]} 6. Be3 {[%emt 0:00:44]} Bxf3 {[%emt 0:00:46]} 7. Bxf3 {[%emt 0:00:02]} e5 {[%emt 0:00:20]} 8. d5 {[%emt 0:01:47]} Nce7 {[%emt 0:00:02]} 9. O-O {[%emt 0:00:17]} f5 {[%emt 0:00:03]} 10. exf5 {[%emt 0:00:51]} Nxf5 {[%emt 0:00:03]} 11. Re1 {[%emt 0:00:42]} Nxe3 {[%emt 0:00:23]} 12. Rxe3 {[%emt 0:00:02]} Nf6 {[%emt 0:00:02]} 13. Ne4 {[%emt 0:00:55]} Nxe4 {[%emt 0:00:17]} 14. Rxe4 {[%emt 0:00:30]} O-O {[%emt 0:00:04]} 15. Bg4 {[%emt 0:00:33]} Qf6 {[%emt 0:00:22]} 16. Be6+ {[%emt 0:00:17]} Kh8 {[%emt 0:00:02]} 17. Qe2 {[%emt 0:00:21]} c6 {[%emt 0:00:58]} 18. Rb4 {[%emt 0:00:37]} Rab8 {[%emt 0:01:54]} 19. Rf1 {[%emt 0:00:37]} Qd8 {[%emt 0:01:05]} 20. Qe3 {[%emt 0:01:13]} Qa5 {[%emt 0:01:00]} 21. Qb3 {[%emt 0:00:22]} Qc7 {[%emt 0:00:51]} 22. Qa4 {[%emt 0:01:47]} a5 {[%emt 0:00:29]} 23. Re4 {[%emt 0:01:03]} cxd5 {[%emt 0:00:32]} 24. Bxd5 {[%emt 0:00:11]} b5 {[%emt 0:00:02]} 25. Qb3 {[%emt 0:00:15]} Qc5 {[%emt 0:00:41]} 26. Qd3 {[%emt 0:00:24]} a4 {[%emt 0:01:05]} 27. b4 {[%emt 0:01:17]} axb3 {[%emt 0:02:14]} 28. axb3 {[%emt 0:00:30]} b4 {[%emt 0:00:22]} 29. Rc4 {[%emt 0:00:22]} Qa7 {[%emt 0:00:17]} 30. Rc6 {[%emt 0:00:26]} Qe7 {[%emt 0:00:03]} 31. Qa6 {[%emt 0:00:52]} Rfd8 {[%emt 0:00:10]} 32. Rb6 {[%emt 0:00:31]} e4 {[%emt 0:00:40]} 33. Qb5 {[%emt 0:00:34]} Rxb6 {[%emt 0:00:27]} 34. Qxb6 {[%emt 0:00:02]} Bc3 {[%emt 0:00:08]} 35. Qe3 {[%emt 0:00:28]} Qg7 {[%emt 0:02:27]} 36. Qxe4 {[%emt 0:00:22]} Rf8 {[%emt 0:00:14]} 37. f3 {[%emt 0:00:35]} Bd4+ {[%emt 0:00:03]} 38. Kh1 {[%emt 0:00:02]} Bc5 {[%emt 0:00:03]} 39. Re1 {[%emt 0:00:17]} Qf6 {[%emt 0:01:21]} 40. h4 {[%emt 0:00:23]} Bd4 {[%emt 0:00:12]} 41. Qg4 {[%emt 0:00:19]} Qf5 {[%emt 0:00:18]} 42. Qxf5 {[%emt 0:00:04]} gxf5 {[%emt 0:00:08]} 43. Re6 {[%emt 0:00:07]} Be5 {[%emt 0:00:04]} 44. Kg1 {[%emt 0:00:07]} Kg7 {[%emt 0:00:03]} 45. Re7+ {[%emt 0:00:04]} Kg6 {[%emt 0:00:02]} 46. h5+ {[%emt 0:00:06]} Kxh5 {[%emt 0:00:18]} 47. Rxh7+ {[%emt 0:00:02]} Kg6 {[%emt 0:00:01]} 48. Rb7 {[%emt 0:00:08]} Bd4+ {[%emt 0:00:04]} 49. Kf1 {[%emt 0:00:06]} Bc5 {[%emt 0:00:04]} 50. Bc4 {[%emt 0:00:07]} Rh8 {[%emt 0:00:04]} 51. Bd3 {[%emt 0:00:15]} Kf6 {[%emt 0:00:05]} 52. g4 {[%emt 0:00:15]} fxg4 {[%emt 0:00:07]} 53. fxg4 {[%emt 0:00:02]} Rh1+ {[%emt 0:00:11]} 54. Kg2 {[%emt 0:00:05]} Rg1+ {[%emt 0:00:02]} 55. Kf3 {[%emt 0:00:11]} Rh1 {[%emt 0:00:49]} 56. Bf5 {[%emt 0:00:29]} Ke5 {[%emt 0:00:14]} 57. Re7+ {[%emt 0:00:10]} Kd4 {[%emt 0:00:05]} 58. Re4+ {[%emt 0:00:16]} Kc3 {[%emt 0:00:03]} 59. Rc4+ {[%emt 0:00:12]} Kd2 {[%emt 0:00:02]} 60. Ke4 {[%emt 0:00:08]} Re1+ {[%emt 0:00:06]} 61. Kd5 {[%emt 0:00:05]} Re5+ {[%emt 0:00:02]} 62. Kc6 {[%emt 0:00:11]} Re8 {[%emt 0:00:09]} 63. Re4 {[%emt 0:00:15]} Rg8 {[%emt 0:00:02]} 64. Re6 {[%emt 0:00:08]} Rc8+ {[%emt 0:00:08]} 65. Kd7 {[%emt 0:00:05]} Rg8 {[%emt 0:00:03]} 66. Rg6 {[%emt 0:00:08]} Rb8 {[%emt 0:00:17]} 67. g5 {[%emt 0:00:13]} Rb7+ {[%emt 0:00:05]} 68. Ke6 {[%emt 0:00:09]} Ke3 {[%emt 0:00:16]} 69. Rg8 {[%emt 0:00:15]} Kf4 {[%emt 0:00:11]} 70. Bd3 {[%emt 0:00:05]} Rb6 {[%emt 0:00:22]} 71. g6 {[%emt 0:00:08]} Kg5 {[%emt 0:00:28]} 72. Rh8 {[%emt 0:00:15]} Bd4 {[%emt 0:00:03]} 73. Rh7 {[%emt 0:00:06]} Be5 {[%emt 0:00:46]} 74. g7 {[%emt 0:00:19]} Bxg7 75. Rxg7+ Kf4 76. Rd7 1-0

[Event "Kupreichik Memorial Rapid 2019"]
[Site "Minsk"]
[Date "2019.08.16"]
[Round "7.30"]
[White "Kashtelyan, Valentin"]
[Black "Stanishevskij, Aleksandr"]
[Result "0-1"]
[ECO "B02"]
[WhiteElo "1488"]
[BlackElo "1830"]
[Annotator "NA"]
[PlyCount "78"]
[EventDate "2019.08.15"]
[EventType "swiss"]
[EventCountry "BLR"]
[SourceTitle "playchess.com"]
[Source "ChessBase"]
[SourceQuality "1"]
[TimeControl "900+10"]

1. e4 {[%emt 0:00:00]} Nf6 {[%emt 0:00:00]} 2. d3 {[%emt 0:00:13]} c5 {[%emt 0:00:33]} 3. Nf3 {[%emt 0:00:19]} Nc6 {[%emt 0:00:16]} 4. Be2 {[%emt 0:00:13]} g6 {[%emt 0:00:13]} 5. O-O {[%emt 0:00:14]} Bg7 {[%emt 0:00:01]} 6. c3 {[%emt 0:00:03]} d6 {[%emt 0:00:08]} 7. Na3 {[%emt 0:00:15]} a6 {[%emt 0:00:20]} 8. Nc2 {[%emt 0:00:05]} b5 {[%emt 0:00:08]} 9. h3 {[%emt 0:00:08]} O-O {[%emt 0:00:34]} 10. Be3 {[%emt 0:00:06]} Bd7 {[%emt 0:00:59]} 11. Qd2 {[%emt 0:00:08]} a5 {[%emt 0:00:30]} 12. Bh6 {[%emt 0:00:09]} b4 {[%emt 0:00:37]} 13. Bxg7 {[%emt 0:00:08]} Kxg7 {[%emt 0:00:01]} 14. Nh4 {[%emt 0:01:02]} Qb6 {[%emt 0:00:05]} 15. Kh1 {[%emt 0:00:20]} Rfb8 {[%emt 0:00:36]} 16. b3 {[%emt 0:01:03]} a4 {[%emt 0:00:17]} 17. bxa4 {[%emt 0:00:56]} Rxa4 {[%emt 0:00:21]} 18. cxb4 {[%emt 0:05:01]} Nxb4 {[%emt 0:00:05]} 19. Ne3 {[%emt 0:01:04]} Qa7 {[%emt 0:01:28]} 20. Ng4 {[%emt 0:01:53]} Nxg4 {[%emt 0:03:36]} 21. Bxg4 {[%emt 0:00:18]} Bxg4 {[%emt 0:00:54]} 22. hxg4 {[%emt 0:00:09]} Ra3 {[%emt 0:00:42]} 23. Qg5 {[%emt 0:02:31]} Kg8 {[%emt 0:02:18]} 24. f4 {[%emt 0:00:44]} Nc2 {[%emt 0:01:29]} 25. Rab1 {[%emt 0:00:31]} Rxb1 {[%emt 0:00:26]} 26. Rxb1 {[%emt 0:00:02]} Rxa2 {[%emt 0:00:35]} 27. f5 {[%emt 0:00:13]} Ra1 {[%emt 0:00:08]} 28. Rxa1 {[%emt 0:00:15]} Qxa1+ {[%emt 0:00:04]} 29. Kh2 {[%emt 0:00:07]} Qe5+ {[%emt 0:00:13]} 30. g3 {[%emt 0:00:39]} Nb4 {[%emt 0:00:41]} 31. Nf3 {[%emt 0:00:10]} Qf6 {[%emt 0:00:34]} 32. Qe3 {[%emt 0:00:12]} Qb2+ {[%emt 0:00:16]} 33. Kh3 {[%emt 0:00:06]} Qc2 {[%emt 0:00:15]} 34. Ne1 {[%emt 0:00:09]} Qd1 {[%emt 0:00:09]} 35. fxg6 {[%emt 0:00:09]} hxg6 {[%emt 0:00:01]} 36. e5 {[%emt 0:00:17]} d5 {[%emt 0:00:27]} 37. e6 {[%emt 0:00:16]} fxe6 {[%emt 0:00:33]} 38. Qxe6+ Kf8 39. Ng2 {[%emt 0:00:29]} Qh1# {[%emt 0:00:04] Ne1} 0-1